Cogmind - Beta 14 @@@ ROGUE MODE // 2024.09.29 @ 22:27:47 Player: Komeiji O. Result: Self-destructed Performance ------------- Evolutions (2) 1000 Regions Visited (3) 600 Robots Destroyed (36) 180 Value Destroyed (977) 977 Prototype IDs (1) 20 Alien Tech Used (0) 0 Bonus (0) 0 TOTAL SCORE: 2777 Bonus ------- None Cogmind --------- Core Integrity 267/550 Matter 296/300 Energy 1/100 System Corruption 0% Temperature Cool (0) Movement Core (200) Ox3 Location -8/Materials Parts ------- > --- POWER (1) -------- (None) > --- PROPULSION (3) --- Carbon-fiber Leg > --- UTILITY (4) ------ Large Storage Unit Weight Redist. System > --- WEAPON (3) ------- Particle Gun Particle Gun Heavy Particle Gun > --- INVENTORY (15) --- Ion Engine Ion Engine Small Storage Unit Large Matter Pod (150) Trap Scanner Particle Charger Particle Charger Light Armor Plating Medium Armor Plating Recalibrator Beam Rifle Mini Grenade Launcher Plasma Cutter Axe Peak State ------------ > --- POWER ------------ Light Nuclear Core > --- PROPULSION ------- Armored Treads Carbon-fiber Leg Wheel > --- UTILITY ---------- Large Storage Unit Weight Redist. System Shield Generator Recalibrator > --- WEAPON ----------- Particle Gun Particle Gun Heavy Particle Gun > --- INVENTORY -------- Ion Engine Ion Engine Heat Sink Large Matter Pod Trap Scanner Particle Charger Particle Charger Light Armor Plating Medium Armor Plating Beam Rifle Mini Grenade Launcher Plasma Cutter [Rating: 29] Favorites ----------- Power Light Ion Engine Engine Light Ion Engine Power Core Light Nuclear Core Propulsion Light Treads Treads Light Treads Leg Aluminum Leg Wheel Compact Wheel Utility Large Storage Unit Device Sensor Array Storage Large Storage Unit Processor Terrain Scan Processor Weapon Particle Gun Energy Gun Particle Gun Ballistic Gun Heavy Assault Rifle Launcher Mini Grenade Launcher Build | -11 -10 -9 -8 ------- Run | Yrd Mat Mat Mat Slots Evolved 4 | . . 2 2 Power . | . . . . Propulsion 1 | . . . 1 Utility 2 | . . 1 1 Weapon 1 | . . 1 . Parts Attached 83 | 6 13 29 35 Power 5 | 1 2 1 1 Engine 3 | 1 1 1 . Core 2 | . 1 . 1 Reactor . | . . . . Propulsion 23 | 2 3 9 9 Treads 6 | . . 3 3 Leg 11 | 2 . 4 5 Wheel 6 | . 3 2 1 Hover . | . . . . Flight . | . . . . Utility 30 | 1 5 8 16 Device 20 | . 1 6 13 Storage 8 | 1 3 1 3 Processor 2 | . 1 1 . Hackware . | . . . . Protection . | . . . . Artifact . | . . . . Weapon 25 | 2 3 11 9 Energy Gun 11 | . . 5 6 Energy Cannon . | . . . . Ballistic Gun 11 | 2 2 5 2 Ballistic Cannon . | . . . . Launcher 3 | . 1 1 1 Special Weapon . | . . . . Impact Weapon . | . . . . Slashing Weapon . | . . . . Piercing Weapon . | . . . . Special Melee Weapon . | . . . . Unidentified Prototypes 1 | . . . 1 Parts Lost 15 | . 6 . 9 Power 3 | . 2 . 1 Propulsion 6 | . 2 . 4 Utility 3 | . . . 3 Weapon 3 | . 2 . 1 Highest Loss Streak 5 | . 3 . 5 To Critical Strikes 1 | . . . 1 Average Slot Usage (%) 97 | . 93 99 97 Engine 5 | . 11 3 4 Core 4 | . 1 7 4 Treads 13 | . . 12 19 Leg 4 | . 17 . 1 Wheel 6 | . 9 9 3 Device 15 | . 1 14 21 Storage 13 | . 17 14 11 Processor 3 | . 5 3 2 Energy Gun 11 | . . 12 14 Ballistic Gun 14 | . 26 20 7 Launcher 2 | . 1 . 4 Peak Build Rating 29 | 6 10 17 29 Average Rating 16 | 4 7 14 22 On Entrance 7 | . 6 10 15 Naked Turns . | . . . . Heaviest Build 39 | 11 37 39 38 Greatest Support 60 | 20 32 40 60 Greatest Overweight (x) 2 | . 1 1 2 Average Overweight (x) . | . . . . Largest Inventory Capacity 15 | 8 15 15 15 Average Capacity 13 | 7 10 15 15 Most Carried 15 | 8 10 15 15 Average Carried 12 | 4 7 13 14 Final Capacity 15 | 8 15 15 15 Final Carried 15 | 6 10 15 14 Class Distribution -------------------- 31% | Skirmisher 25% | Scavenger-Skirmisher 23% | Mutant 15% | Tank Dominant Class ---------------- Mutant | -10/Materials Tank | -9/Materials Skirmisher | -8/Materials Resources | -11 -10 -9 -8 ----------- Run | Yrd Mat Mat Mat Matter Collected 1589 | 215 318 523 533 Remotely . | . . . . Salvage Created 1002 | . 275 340 387 Parts 74 | . 21 33 20 Haulers Intercepted . | . . . . Recyclers Shooed . | . . . . Parts Field Recycled . | . . . . Retrieved Matter . | . . . . Parts Self-Destructed . | . . . . Prevented . | . . . . Kills | -11 -10 -9 -8 ------- Run | Yrd Mat Mat Mat Combat Hostiles Destroyed 26 | . 11 7 8 Guns 21 | . 9 7 5 AOE 5 | . 2 . 3 Classes Destroyed 6 | . 4 2 . Worker 2 | . . 1 1 Builder 6 | . 2 3 1 Watcher 2 | . 1 1 . Swarmer 5 | . 5 . . Grunt 19 | . 6 5 8 Sentry 2 | . . 2 . Best Kill Streak 5 | . 5 4 3 Combat Bots Only 3 | . 3 2 3 Max Kills in Single Turn 2 | . 2 2 2 Gunslinging . | . . . . Exploded 2 | . 1 . 2 Melee . | . . . . Uniques/NPCs Destroyed . | . . . . Combat | -11 -10 -9 -8 -------- Run | Yrd Mat Mat Mat Hostile Shots Fired 364 | . 118 40 206 Missed 133 | . 49 9 75 Damage Taken 2687 | . 761 310 1616 Core 507 | . 194 30 283 Absorbed by Shields 175 | . . 86 89 Regen/Repaired (Parts) 51 | . . 51 . Core Remaining (%) 71 | 100 22 92 . Volleys Fired 94 | . 45 19 30 Largest 3 | . 2 3 3 Hottest 185 | . 50 109 185 Shots Fired 225 | . 87 57 81 Gun 217 | . 83 56 78 Cannon . | . . . . Launcher 8 | . 4 1 3 Special . | . . . . Kinetic 154 | . 83 37 34 Thermal 63 | . . 19 44 Explosive 8 | . 4 1 3 Electromagnetic . | . . . . Robot Hit Streak 8 | . 8 4 6 Robot Miss Streak 8 | . 5 6 8 Penetration Max . | . . . . Secondary Targets 3 | . 1 . 2 Max Gunslinging Chain 1 | . 1 . 1 Shots Hit Robots 129 | . 48 27 54 Core Hits 72 | . 25 21 26 Critical Kills . | . . . . Critical Parts Destroyed . | . . . . Critical Strikes 1 | . . 1 . Burn 1 | . . 1 . Melee Attacks . | . . . . Impact . | . . . . Slashing . | . . . . Piercing . | . . . . Sneak Attacks . | . . . . Combat Hostiles . | . . . . Follow-up Attacks . | . . . . Damage Inflicted 2513 | . 970 411 1132 Guns 1676 | . 455 351 870 Cannons . | . . . . Explosions 837 | . 515 60 262 Melee . | . . . . Ramming . | . . . . Kinetic 997 | . 455 190 352 Thermal 679 | . . 161 518 Explosive 837 | . 515 60 262 Electromagnetic . | . . . . Impact . | . . . . Slashing . | . . . . Piercing . | . . . . Highest Corruption . | . . . . Average Corruption . | . . . . Corruption Purged . | . . . . Corruption Blocked . | . . . . Overload Shots . | . . . . Overflow Damage 70 | . 70 . . Projectiles . | . . . . Explosions 70 | . 70 . . Melee . | . . . . Knockbacks . | . . . . Impact . | . . . . Kinetic . | . . . . Secondary . | . . . . Self-Inflicted Damage 107 | . 67 . 40 Shots 4 | . 3 . 1 Rammed . | . . . . Targets Rammed . | . . . . Kicked . | . . . . Crushed . | . . . . Highest Temperature 504 | . 21 143 504 Average Temperature 88 | . 6 45 135 Received Heat Transfer 1008 | . 288 144 576 Effects 7 | . . . 7 Energy Bleed 1 | . . . 1 Interference 1 | . . . 1 Matter Decay 2 | . . . 2 Short Circuit 2 | . . . 2 Damage (minor) 1 | . . . 1 Siege Activations . | . . . . Robots Corrupted . | . . . . Combat Hostiles . | . . . . Parts Fried . | . . . . Impact Corruptions . | . . . . Robots Melted . | . . . . Combat Hostiles . | . . . . Parts Melted . | . . . . Heat Transferred 1479 | . . 369 1110 Parts Sabotaged . | . . . . Parts Stolen . | . . . . Parts Stripped . | . . . . Power Chain Reactions . | . . . . Alert | -11 -10 -9 -8 ------- Run | Yrd Mat Mat Mat Peak Influence 303 | . 303 195 123 Initial 59 | . . 59 18 Average 80 | . 162 110 41 Maximum Alert Level 1 | . 1 . . Low Security (%) 93 | 100 61 100 100 Level 1 6 | . 38 . . Level 2 . | . . . . Level 3 . | . . . . Level 4 . | . . . . Level 5 . | . . . . High Security . | . . . . Max Security . | . . . . Squads Dispatched 5 | . 1 1 3 Investigation 3 | . 1 . 2 Extermination . | . . . . Reinforcement 2 | . . 1 1 Assault . | . . . . Garrison . | . . . . Intercept . | . . . . Searches Triggered . | . . . . Construction Impeded . | . . . . Haulers Reinforced . | . . . . Active Scanning Responses . | . . . . Cargo Convoy Interrupts . | . . . . Stealth | -11 -10 -9 -8 --------- Run | Yrd Mat Mat Mat Distress Signals 5 | . . 3 2 Communications Jammed . | . . . . Distress Signals . | . . . . Times Spotted 51 | . 20 11 20 Peak Tracking Total 8 | . 8 2 8 Tactical Retreats 3 | . 2 . 1 Traps | -11 -10 -9 -8 ------- Run | Yrd Mat Mat Mat Traps Triggered 2 | . 1 . 1 Indirectly . | . . . . Trap Hack Attempts . | . . . . Triggered . | . . . . Disarmed . | . . . . Reprogrammed . | . . . . Reused . | . . . . Traps Extracted . | . . . . Installed . | . . . . Triggered . | . . . . Machines | -11 -10 -9 -8 ---------- Run | Yrd Mat Mat Mat Machines Disabled 1 | . . 1 . Max in Single Turn 1 | . . 1 . Machines Repaired . | . . . . Machines Dismantled . | . . . . Machines Sabotaged . | . . . . Overloaded Fab Kills . | . . . . Hacking | -11 -10 -9 -8 --------- Run | Yrd Mat Mat Mat Machines Accessed 8 | . 1 4 3 Terminals 6 | . . 3 3 Fabricators . | . . . . Repair Stations 1 | . . 1 . Recycling Units 1 | . 1 . . Scanalyzers . | . . . . Garrison Access . | . . . . Total Hacks 20 | . 2 12 6 Successful 9 | . 1 7 1 Failed 11 | . 1 5 5 Catastrophic 1 | . . . 1 Database Lockouts . | . . . . Manual 5 | . . 2 3 Terminals 14 | . . 8 6 Fabricators . | . . . . Repair Stations 4 | . . 4 . Recycling Units 2 | . 2 . . Scanalyzers . | . . . . Garrison Access . | . . . . Terminal Hacks 6 | . . 5 1 Record 2 | . . 2 . Alert Level 2 | . . 2 . Zone Layout 2 | . . 1 1 Fabricator Hacks . | . . . . Repair Station Hacks 2 | . . 2 . Scan Component 1 | . . 1 . Repair 1 | . . 1 . Recycling Unit Hacks 1 | . 1 . . Report Inventory 1 | . 1 . . Scanalyzer . | . . . . Garrison Access Hacks . | . . . . Unauthorized Hacks . | . . . . Terminals . | . . . . Fabricators . | . . . . Repair Stations . | . . . . Recycling Units . | . . . . Scanalyzers . | . . . . Garrison Access . | . . . . Data Cores Recovered . | . . . . Used . | . . . . Hacking Detections 6 | . . 3 3 Full Trace Events 1 | . . . 1 Feedback Events . | . . . . Feedback Blocked . | . . . . Robot Schematics Acquired . | . . . . Robots Built . | . . . . Authchips . | . . . . Time . | . . . . Total Robot Build Rating . | . . . . Part Schematics Acquired . | . . . . Parts Built . | . . . . Authchips . | . . . . Time . | . . . . Total Part Build Rating . | . . . . Parts Repaired 1 | . . 1 . Time 26 | . . 26 . Parts Recycled . | . . . . Recycled Matter . | . . . . Retrieved Matter . | . . . . Retrieved Components . | . . . . Parts Scanalyzed . | . . . . Part Schematics Acquired . | . . . . Parts Damaged . | . . . . Bothacking | -11 -10 -9 -8 ------------ Run | Yrd Mat Mat Mat Used RIF Installer . | . . . . Robots Hacked . | . . . . Non-combat . | . . . . Combat . | . . . . Robot Hacks Applied . | . . . . Relay Couplers Released . | . . . . Fabnet Peak Effective % . | . . . . Robots Rewired . | . . . . Allies Hacked . | . . . . Hacks Repelled . | . . . . Allies | -11 -10 -9 -8 -------- Run | Yrd Mat Mat Mat Total Allies . | . . . . Largest Group . | . . . . Highest-Rated Group . | . . . . Highest-Rated Ally . | . . . . Total Orders . | . . . . Ally Attacks . | . . . . Total Damage . | . . . . Kills . | . . . . Allies Corrupted . | . . . . Allies Melted . | . . . . Intel | -11 -10 -9 -8 ------- Run | Yrd Mat Mat Mat Robot Analysis Total . | . . . . Derelict Logs Recovered . | . . . . Drone Launches . | . . . . Drone Recoveries . | . . . . Exploration | -11 -10 -9 -8 ------------- Run | Yrd Mat Mat Mat Turns Passed 2843 | 158 504 818 1363 Spaces Moved 1562 | 121 298 516 627 Core 4 | 4 . . . Treads 777 | . . 253 524 Legs 320 | 117 182 1 20 Wheels 461 | . 116 262 83 Hover . | . . . . Flight . | . . . . Fastest Speed 50 | 50 100 100 95 Average Speed 137 | 117 116 131 155 Slowest Speed 250 | 120 190 190 250 Overloaded Moves . | . . . . Propulsion Burnouts . | . . . . Robots Hopped . | . . . . Cave-ins Triggered . | . . . . Exploration Rate (%) 26 | 7 42 29 28 Regions Visited 3 Branch Regions . Pre-discovered Areas . | . . . . Known Exits Taken . | . . . . Unknown Exits Taken 3 | 1 1 1 . Scrap Searched . | . . . . Spaces Dug . | . . . . Terrain Destroyed 61 | . 28 6 27 Melee . | . . . . Projectile . | . . . . AOE 61 | . 28 6 27 Terrain Rammed . | . . . . Walls Destroyed . | . . . . Machines Disabled . | . . . . Actions | -11 -10 -9 -8 --------- Run | Yrd Mat Mat Mat Total 2064 | 134 376 614 940 Wait 250 | . 5 17 228 Move 1559 | 120 297 515 627 Hop . | . . . . Pick Up 47 | 8 12 18 9 Fast Attach 8 | 4 2 . 2 Attach 15 | 2 5 3 5 Detach . | . . . . Swap 60 | . 6 26 28 Drop 31 | . 4 16 11 Fire 94 | . 45 19 30 Melee . | . . . . Ram . | . . . . Kick . | . . . . Crush . | . . . . Escape Stasis . | . . . . Rewire . | . . . . Trap . | . . . . Miscellaneous . | . . . . Route ------- -11/Scrapyard -10/Materials -9/Materials -8/Materials History --------- Turn | Location | Event 6 | -11/Scrapyard | Discovered new exit (range 15) 159 | -11/Scrapyard | Entered Materials 325 | -10/Materials | Build established: Mutant 450 | -10/Materials | Core integrity fell below 50% 620 | -10/Materials | Lost 3 parts (1p1n1w) 652 | -10/Materials | Discovered new exit (range 8) 663 | -10/Materials | Entered another Materials area 663 | -9/Materials | Evolved 2 slots: Utility x1, Weapon x1 756 | -9/Materials | Repaired Lgt. Assault Rifle 1218 | -9/Materials | Build established: Tank 1334 | -9/Materials | Discovered new exit (range 16) 1481 | -9/Materials | Entered another Materials area 1481 | -8/Materials | Evolved 2 slots: Propulsion x1, Utility x1 1559 | -8/Materials | Build established: Scavenger-Skirmisher 2208 | -8/Materials | Build established: Skirmisher 2832 | -8/Materials | Core integrity fell below 50% 2844 | -8/Materials | Self-destructed Last Messages --------------- 02808_ K-01 Serf destroyed. 02810_ K-01 Serf collects debris. 02815_ Lgt. Nuclear Core destroyed. 02816_ Shield Generator destroyed. 02817_ X-57 Shotgunner suffers critical hit (Burn). 02817_ X-57 Shotgunner destroyed. 02818_ K-01 Serf collects debris. 02819_ K-01 Serf destroyed. 02820_ Extracted 78 matter. 02824_ K-01 Serf collects debris. 02826_ R-06 Scavenger collects VSS Leg. 02828_ K-01 Serf collects debris. 02830_ R-06 Scavenger collects Med. Matter Pod. 02833_ R-06 Scavenger collects Imp. Heat Sink. 02834_ U-05 Engineer destroyed. 02840_ Critical hit (Destroy). 02840_ Arm. Treads destroyed. 02840_ Wheel destroyed. 02843_ Heat Sink destroyed. Map ----- +----------------------------------------------------+ | ?????????????????????????# ?????????# ## # | | ??????????????????????????# #?????????# ## # | | ??????????????????????????# ########### ## ! # | | ??????????????????????????# ## # | | ??????????????????????????# ## # | | ??????????????????????????# ! ## """ # | | ??????????????????????????# + """ # | | ??????????????????????????# " " # """ # | | ??????????????????????????# "Y" # # | | ??????????????????????????# """ ####### | | ??????????????????????????# #??#?## | | ??????????????????????????# #?##### | | ??????????????????????????# ########### #####?# | | ??????????????????????????# #??######## #?##### | | ??????????????????????????# #?? # ####?## | | ??????????????????????????# #?? """ # ####### | | ??????????????????????????#= #?? """ # #?##### | | ??????????????????????????#%= #?? """ # #?##### | | ??????????????????????????#! #?? + ####### | | ??????????????????????????# #?? """ # #### | | ??????????????????????????# *#?? """ # #?## T | | ??????????????????????????#==%#?? """ + #### | | ??????????????????????????#% =#?? # #### | | ?????????????##############ss%#####+##### ## #### | | ?????????? | x s ###### | | ?????????? @ % | | ????????????"" = w | | ????????????"" ################## ######### | | ?????????????????????????????????# #??###### | | ?????????????????????????????????# #???#??##+##+ | | ?????????????????????????????????# ######## | | ?????????????????????????????????# # # "" | | ?????????????????????????????????# # """ # "T | | ?????????????????????????????????# # """ # | | ?????????????????????????????????# + """ ###### | | ?????????????????????????????????# # #????? | | ??????????????????????????????????? #???????????? | | ??????????????????????????????????? #???????????? | | ???????????????????????????????????? ???????????? | | ?????????????????????????????????????????????????? | | ?????????????????????????????????????????????????? | | ?????????????????????????????????????????????????? | | ?????????????????????????????????????????????????? | | ?????????????????????????????????????????????????? | | ?????????????????????????????????????????????????? | | ?????????????????????????????????????????????????? | | ?????????????????????????????????????????????????? | | ?????????????????????????????????????????????????? | | ?????????????????????????????????????????????????? | | ?????????????????????????????????????????????????? | +----------------------------------------------------+ Best States ------------- Heat Dissipation 48 Energy Generation 14 Energy Capacity 360 Matter Stores 421 Matter Capacity 450 Sight Range 16 Robot Scan Range 14 Terrain Scan Range 14 Terrain Scan Density 85 Additional Mass Support 6 Evasion (%) 55 Recoil Reduction 3 Particle Charging 15 Item Schematics ----------------- None Robot Schematics ------------------ None Fabricated ------------ Nothing Alien Tech Used ----------------- None Achievements -------------- Let's See Who's Tougher Risk Taker Challenges ------------ None Game ------ Seed ShadePlasmaDerivative Manual? 0 Play Time 00:59:04 Cumulative 2.8 hours Start 2024.09.29 @ 21:28:39 End 2024.09.29 @ 22:27:47 Sessions 1 Manual Loads 0 Difficulty Rogue Special Mode None Game No. 4 Rogue 4 Adventurer 0 Explorer 0 Win Type - Total 0 Types 0/0/0/0/0/0/0/0/0 Lore% 0 Gallery% 5 Achievement% 4 Wizard Run 0 Options --------- Layout 1 ASCII 0 Keyboard 0 Movement Vi Keybinds 0 Fullscreen 1 Font 48/Terminus++ Map View 50x35 Zoom Use 0% Tactical HUD 1 Map Filters NONE Filters NONE Steam 0 RUN: f7f1c21c-bb5a-4770-82ef-2f051dfe08f3